[Event "15th Golden Prague Rapid Open"]
[Site "Prague"]
[Date "2019.06.30"]
[Round "2.2"]
[White "Kiss, Pal"]
[Black "Nedoma, Marek"]
[Result "1-0"]
[ECO "D34"]
[WhiteElo "2278"]
[BlackElo "1984"]
[Annotator "NA"]
[PlyCount "101"]
[EventDate "2019.06.30"]
[EventType "swiss"]
[EventCountry "CZE"]
[SourceTitle "playchess.com"]
[Source "ChessBase"]
[SourceQuality "1"]
[TimeControl "720+3"]

1. d4 {[%emt 0:00:00]} Nf6 {[%emt 0:00:00]} 2. c4 {[%emt 0:00:00]} e6 {[%emt 0:00:00]} 3. Nf3 {[%emt 0:00:01]} d5 {[%emt 0:00:01]} 4. g3 {[%emt 0:00:02]} Be7 {[%emt 0:00:04]} 5. Bg2 {[%emt 0:00:01]} O-O {[%emt 0:00:10]} 6. O-O {[%emt 0:00:02]} c5 {[%emt 0:00:17]} 7. cxd5 {[%emt 0:00:04]} exd5 {[%emt 0:00:07]} 8. Nc3 {[%emt 0:00:01]} Nc6 {[%emt 0:00:28]} 9. Bg5 {[%emt 0:00:04]} c4 {[%emt 0:01:46]} 10. Ne5 {[%emt 0:00:04]} Be6 {[%emt 0:00:18]} 11. Nxc6 {[%emt 0:00:04]} bxc6 {[%emt 0:00:03]} 12. b3 {[%emt 0:00:01]} cxb3 {[%emt 0:00:42]} 13. axb3 {[%emt 0:00:03]} h6 {[%emt 0:00:02]} 14. Bxf6 {[%emt 0:00:16]} Bxf6 {[%emt 0:00:01]} 15. Na4 {[%emt 0:00:04]} Qb8 {[%emt 0:00:35]} 16. e3 {[%emt 0:00:33]} Be7 {[%emt 0:00:48]} 17. Qc2 {[%emt 0:00:13]} Rc8 {[%emt 0:00:13]} 18. Rfc1 {[%emt 0:00:14]} Qb4 {[%emt 0:00:22]} 19. Qd3 {[%emt 0:03:14]} Rab8 {[%emt 0:00:39]} 20. Rc3 {[%emt 0:00:46]} g6 {[%emt 0:00:08]} 21. Rac1 {[%emt 0:00:25]} Qa3 {[%emt 0:01:07]} 22. Qd1 {[%emt 0:01:17]} a5 {[%emt 0:00:56]} 23. h4 {[%emt 0:00:10]} h5 {[%emt 0:00:06]} 24. Bf3 {[%emt 0:00:21]} Bd7 {[%emt 0:00:35]} 25. Kg2 {[%emt 0:00:17]} Be6 {[%emt 0:01:27]} 26. Ra1 {[%emt 0:00:11]} Qb4 {[%emt 0:00:07]} 27. Qc1 {[%emt 0:00:15]} Qb5 {[%emt 0:00:14]} 28. Bd1 {[%emt 0:00:27]} Bb4 {[%emt 0:00:08]} 29. Rc2 {[%emt 0:00:10]} Bf5 {[%emt 0:00:01]} 30. Be2 {[%emt 0:00:16]} Qb7 {[%emt 0:00:10]} 31. Nc5 {[%emt 0:00:15]} Qe7 {[%emt 0:00:09]} 32. Rb2 {[%emt 0:00:52]} Kg7 {[%emt 0:00:18]} 33. Na6 {[%emt 0:00:24]} Rb6 {[%emt 0:00:05]} 34. Nxb4 {[%emt 0:00:09]} axb4 {[%emt 0:00:20]} 35. Qd2 {[%emt 0:00:17]} Be4+ {[%emt 0:00:08]} 36. Kg1 {[%emt 0:00:08]} c5 {[%emt 0:00:11]} 37. dxc5 {[%emt 0:00:11]} Qxc5 {[%emt 0:00:02]} 38. Rd1 {[%emt 0:00:11]} Qc3 {[%emt 0:00:03]} 39. Qd4+ {[%emt 0:00:08]} Kg8 {[%emt 0:00:25]} 40. f3 {[%emt 0:00:47]} Bc2 {[%emt 0:00:30]} 41. Rd2 {[%emt 0:00:22]} Bf5 {[%emt 0:00:06]} 42. Kf2 {[%emt 0:00:04]} Qxd4 {[%emt 0:00:03]} 43. Rxd4 {[%emt 0:00:01]} Be6 {[%emt 0:00:05]} 44. Bd3 {[%emt 0:00:10]} Rc3 {[%emt 0:00:03]} 45. Ke2 {[%emt 0:00:03]} Kg7 {[%emt 0:00:04]} 46. Kd2 {[%emt 0:00:01]} Rc7 {[%emt 0:00:04]} 47. Ra2 {[%emt 0:00:07]} f6 {[%emt 0:00:02]} 48. Ra4 {[%emt 0:00:01]} Rcb7 {[%emt 0:00:02]} 49. Bc2 {[%emt 0:00:17]} g5 {[%emt 0:00:01]} 50. Ra8 {[%emt 0:00:06]} gxh4 {[%emt 0:00:04]} 51. Rxh4 {[%emt 0:00:02] Kg6 Rh8+} 1-0

[Event "15th Golden Prague Rapid Open"]
[Site "Prague"]
[Date "2019.06.30"]
[Round "2.3"]
[White "Plesnivy, Martin"]
[Black "Rydl, Jiri"]
[Result "0-1"]
[ECO "D44"]
[WhiteElo "1803"]
[BlackElo "2422"]
[Annotator "ChessBase"]
[PlyCount "74"]
[EventDate "2019.06.30"]
[EventType "swiss"]
[EventCountry "CZE"]
[SourceTitle "playchess.com"]
[Source "ChessBase"]
[SourceQuality "1"]
[TimeControl "720+3"]

1. d4 {[%emt 0:00:00]} Nf6 {[%emt 0:00:00]} 2. Nf3 {[%emt 0:00:01]} e6 {[%emt 0:00:01]} 3. c4 {[%emt 0:00:01]} d5 {[%emt 0:00:03]} 4. Nc3 {[%emt 0:00:02]} c6 {[%emt 0:00:03]} 5. Bg5 {[%emt 0:00:08]} h6 {[%emt 0:00:02]} 6. Bh4 {[%emt 0:00:04]} dxc4 {[%emt 0:00:03]} 7. e4 {[%emt 0:00:03]} g5 {[%emt 0:00:02]} 8. Bg3 {[%emt 0:00:30]} b5 {[%emt 0:00:02]} 9. e5 {[%emt 0:00:14]} Nd5 {[%emt 0:00:03]} 10. Nxd5 {[%emt 0:00:02]} cxd5 {[%emt 0:00:02]} 11. Be2 {[%emt 0:00:09]} Nc6 {[%emt 0:00:13]} 12. O-O {[%emt 0:00:08]} Be7 {[%emt 0:00:03]} 13. a4 {[%emt 0:00:13]} b4 {[%emt 0:00:02]} 14. Qd2 {[%emt 0:00:27]} a5 {[%emt 0:00:11]} 15. Rad1 {[%emt 0:00:24]} Ba6 {[%emt 0:00:08]} 16. Ne1 {[%emt 0:00:05]} Qb6 {[%emt 0:00:21]} 17. f4 {[%emt 0:00:07]} Nxd4 {[%emt 0:00:35]} 18. Bf2 {[%emt 0:00:22]} c3 {[%emt 0:00:23]} 19. Qxd4 {[%emt 0:01:07]} Qxd4 {[%emt 0:00:02]} 20. Rxd4 {[%emt 0:00:03]} Bxe2 {[%emt 0:00:04]} 21. bxc3 {[%emt 0:00:17]} b3 {[%emt 0:00:15]} 22. Rd2 {[%emt 0:00:13]} Bxf1 {[%emt 0:00:03]} 23. Kxf1 {[%emt 0:00:05]} gxf4 {[%emt 0:00:05]} 24. Nd3 {[%emt 0:00:09]} Rb8 {[%emt 0:00:08]} 25. Rb2 {[%emt 0:00:10]} Ba3 {[%emt 0:00:07]} 26. Rb1 {[%emt 0:00:01]} Kd7 {[%emt 0:00:28]} 27. Nxf4 {[%emt 0:00:24]} Rhc8 {[%emt 0:00:07]} 28. Bd4 {[%emt 0:00:05]} Bc5 {[%emt 0:00:13]} 29. Bxc5 {[%emt 0:00:20]} Rxc5 {[%emt 0:00:02]} 30. Ne2 {[%emt 0:00:02]} Rc4 {[%emt 0:00:14]} 31. Ke1 {[%emt 0:00:10]} Rxa4 {[%emt 0:00:03]} 32. Nd4 {[%emt 0:00:06]} Rxd4 {[%emt 0:00:04]} 33. cxd4 {[%emt 0:00:01]} b2 {[%emt 0:00:05]} 34. Kd2 {[%emt 0:00:06]} a4 {[%emt 0:00:01]} 35. Kc2 {[%emt 0:00:05]} a3 {[%emt 0:00:01]} 36. g3 {[%emt 0:00:11]} a2 {[%emt 0:00:04]} 37. Rxb2 {[%emt 0:00:01]} Rc8+ {[%emt 0:00:01]} 0-1

[Event "15th Golden Prague Rapid Open"]
[Site "Prague"]
[Date "2019.06.30"]
[Round "2.5"]
[White "Plicka, Petr"]
[Black "Netusil, Miloslav"]
[Result "0-1"]
[ECO "E63"]
[WhiteElo "1781"]
[BlackElo "2189"]
[Annotator "NA"]
[PlyCount "66"]
[EventDate "2019.06.30"]
[EventType "swiss"]
[EventCountry "CZE"]
[SourceTitle "playchess.com"]
[Source "ChessBase"]
[SourceQuality "1"]
[TimeControl "720+3"]

1. d4 {[%emt 0:12:03]} Nf6 {[%emt 0:00:02]} 2. Nf3 {[%emt 0:00:00]} g6 {[%emt 0:00:04]} 3. g3 {[%emt 0:00:00]} Bg7 {[%emt 0:00:01]} 4. Bg2 {[%emt 0:00:00]} O-O {[%emt 0:00:03]} 5. O-O {[%emt 0:00:00]} d6 {[%emt 0:00:01]} 6. c4 {[%emt 0:00:00]} Nc6 {[%emt 0:00:07]} 7. Nc3 {[%emt 0:00:00]} a6 {[%emt 0:00:03]} 8. Bf4 {[%emt 0:00:00]} Rb8 {[%emt 0:00:03]} 9. Re1 {[%emt 0:00:00]} b5 {[%emt 0:00:07]} 10. cxb5 {[%emt 0:00:00]} axb5 {[%emt 0:00:02]} 11. Qc1 {[%emt 0:00:00]} Re8 {[%emt 0:00:23]} 12. Nxb5 {[%emt 0:00:00]} Rxb5 {[%emt 0:00:01]} 13. Qxc6 {[%emt 0:00:00]} Rxb2 {[%emt 0:00:03]} 14. Qc1 {[%emt 0:00:00]} Rb8 {[%emt 0:00:15]} 15. Bh6 {[%emt 0:00:00]} Bh8 {[%emt 0:00:05]} 16. e4 {[%emt 0:00:00]} e5 {[%emt 0:02:31]} 17. dxe5 {[%emt 0:00:00]} Ng4 {[%emt 0:00:02]} 18. Bd2 {[%emt 0:00:00]} Nxe5 {[%emt 0:00:07]} 19. Nxe5 {[%emt 0:00:00]} Bxe5 {[%emt 0:00:02]} 20. Bc3 {[%emt 0:00:00]} Ba6 {[%emt 0:00:27]} 21. Bxe5 {[%emt 0:00:00]} Rxe5 {[%emt 0:00:01]} 22. Qc3 {[%emt 0:00:00]} Rc5 {[%emt 0:00:25]} 23. Qd4 {[%emt 0:00:00]} Rc4 {[%emt 0:00:04]} 24. Qe3 {[%emt 0:00:00]} Rc2 {[%emt 0:00:42]} 25. Bf1 {[%emt 0:00:00]} Bxf1 {[%emt 0:00:13]} 26. Rxf1 {[%emt 0:00:00]} Rbb2 {[%emt 0:00:03]} 27. e5 {[%emt 0:00:00]} Re2 {[%emt 0:00:10]} 28. Qc3 {[%emt 0:00:00]} dxe5 {[%emt 0:00:05]} 29. Rfe1 {[%emt 0:01:24]} Rxf2 {[%emt 0:00:08]} 30. Qxe5 {[%emt 0:00:00]} Rg2+ {[%emt 0:00:12]} 31. Kh1 {[%emt 0:00:00]} Rxh2+ {[%emt 0:00:02]} 32. Kg1 {[%emt 0:00:00]} Rbg2+ {[%emt 0:00:03]} 33. Kf1 {[%emt 0:00:00]} Qd3+ {[%emt 0:00:01]} 0-1

[Event "15th Golden Prague Rapid Open"]
[Site "Prague"]
[Date "2019.06.30"]
[Round "2.8"]
[White "Groh, Jiri"]
[Black "Feierfeil, Jiri"]
[Result "1-0"]
[ECO "E01"]
[WhiteElo "2001"]
[BlackElo "1772"]
[Annotator "NA"]
[PlyCount "113"]
[EventDate "2019.06.30"]
[EventType "swiss"]
[EventCountry "CZE"]
[SourceTitle "playchess.com"]
[Source "ChessBase"]
[SourceQuality "1"]
[TimeControl "720+3"]

1. Nf3 {[%emt 0:00:00]} c5 {[%emt 0:00:00]} 2. g3 {[%emt 0:00:01]} Nc6 {[%emt 0:00:00]} 3. Bg2 {[%emt 0:00:01]} d5 {[%emt 0:00:01]} 4. O-O {[%emt 0:00:03]} e6 {[%emt 0:00:02]} 5. d4 {[%emt 0:00:03]} cxd4 {[%emt 0:00:04]} 6. Nxd4 {[%emt 0:00:01]} Nf6 {[%emt 0:00:02]} 7. c4 {[%emt 0:00:19]} Nxd4 {[%emt 0:00:31]} 8. Qxd4 {[%emt 0:00:02]} Qb6 {[%emt 0:00:28]} 9. Qxb6 {[%emt 0:00:25]} axb6 {[%emt 0:00:01]} 10. Nc3 {[%emt 0:00:13]} dxc4 {[%emt 0:00:18]} 11. Nb5 {[%emt 0:00:06]} Ke7 {[%emt 0:00:50]} 12. Be3 {[%emt 0:00:11]} Nd5 {[%emt 0:00:22]} 13. Bd4 {[%emt 0:00:20]} Ra5 {[%emt 0:00:13]} 14. a4 {[%emt 0:00:41]} Bd7 {[%emt 0:00:03]} 15. e4 {[%emt 0:00:17]} Bxb5 {[%emt 0:00:19]} 16. exd5 {[%emt 0:00:22]} Rxa4 {[%emt 0:00:15]} 17. Bxb6 {[%emt 0:00:21]} Kf6 {[%emt 0:01:00]} 18. Rxa4 {[%emt 0:00:22]} Bxa4 {[%emt 0:00:01]} 19. Ra1 {[%emt 0:00:03]} Bb5 {[%emt 0:00:42]} 20. Ra5 {[%emt 0:00:33]} Ba6 {[%emt 0:00:16]} 21. dxe6 {[%emt 0:00:55]} fxe6 {[%emt 0:00:07]} 22. Bd4+ {[%emt 0:00:10]} Kf7 {[%emt 0:01:07]} 23. Bxb7 {[%emt 0:01:00]} Bxb7 {[%emt 0:01:13]} 24. Ra7 {[%emt 0:00:02]} Be7 {[%emt 0:00:12]} 25. Rxb7 {[%emt 0:00:01]} Re8 {[%emt 0:00:06]} 26. Rc7 {[%emt 0:00:08]} g6 {[%emt 0:00:27]} 27. Rxc4 {[%emt 0:00:07]} Bd6 {[%emt 0:00:06]} 28. Ra4 {[%emt 0:00:12]} e5 {[%emt 0:00:05]} 29. Bc3 {[%emt 0:00:06]} h5 {[%emt 0:00:03]} 30. Ra7+ {[%emt 0:00:07]} Ke6 {[%emt 0:00:00]} 31. h4 {[%emt 0:00:18]} e4 {[%emt 0:00:11]} 32. Rg7 {[%emt 0:00:15]} Kf5 {[%emt 0:00:25]} 33. Rf7+ {[%emt 0:00:07]} Ke6 {[%emt 0:00:01]} 34. Rf6+ {[%emt 0:00:01]} Kd7 {[%emt 0:00:01]} 35. Rxg6 {[%emt 0:00:04]} e3 {[%emt 0:00:01]} 36. fxe3 {[%emt 0:00:23]} Rxe3 {[%emt 0:00:00]} 37. Kf2 {[%emt 0:00:09]} Bc5 {[%emt 0:00:11]} 38. Kg2 {[%emt 0:00:11]} Re2+ {[%emt 0:00:07]} 39. Kf3 {[%emt 0:00:06]} Re3+ {[%emt 0:00:01]} 40. Kf4 {[%emt 0:00:05]} Rd3 {[%emt 0:00:16]} 41. Ke4 {[%emt 0:00:16]} Re3+ {[%emt 0:00:02]} 42. Kd5 {[%emt 0:00:01]} Be7 {[%emt 0:00:15]} 43. Rg7 {[%emt 0:00:12]} Ke8 {[%emt 0:00:05]} 44. Bd4 {[%emt 0:00:18]} Rd3 {[%emt 0:00:02]} 45. Ke6 {[%emt 0:00:37]} Bf8 {[%emt 0:00:04]} 46. Rd7 {[%emt 0:00:18]} Rxg3 {[%emt 0:00:09]} 47. Rb7 {[%emt 0:00:22]} Rg6+ {[%emt 0:00:02]} 48. Bf6 {[%emt 0:00:06]} Bd6 {[%emt 0:00:17]} 49. Ra7 {[%emt 0:00:27]} Rxf6+ {[%emt 0:00:44]} 50. Kxf6 {[%emt 0:00:03]} Kd8 {[%emt 0:00:02]} 51. Rh7 {[%emt 0:00:06]} Kc8 {[%emt 0:00:10]} 52. Ke6 {[%emt 0:00:04]} Bg3 {[%emt 0:00:06]} 53. Rxh5 {[%emt 0:00:04]} Kc7 {[%emt 0:00:01]} 54. Rh7+ {[%emt 0:00:04]} Kc6 {[%emt 0:00:00]} 55. h5 {[%emt 0:00:01]} Bf2 {[%emt 0:00:09]} 56. h6 {[%emt 0:00:04]} Bd4 {[%emt 0:00:01]} 57. Rg7 {[%emt 0:00:02]} 1-0

[Event "15th Golden Prague Rapid Open"]
[Site "Prague"]
[Date "2019.06.30"]
[Round "2.9"]
[White "Hozda, Max"]
[Black "Benes, Petr"]
[Result "0-1"]
[ECO "A51"]
[WhiteElo "1695"]
[BlackElo "2103"]
[Annotator "NA"]
[PlyCount "44"]
[EventDate "2019.06.30"]
[EventType "swiss"]
[EventCountry "CZE"]
[SourceTitle "playchess.com"]
[Source "ChessBase"]
[SourceQuality "1"]
[TimeControl "720+3"]

1. d4 {[%emt 0:00:00]} Nf6 {[%emt 0:00:09]} 2. c4 {[%emt 0:00:00]} e5 {[%emt 0:00:07]} 3. d5 {[%emt 0:00:13]} Bc5 {[%emt 0:00:09]} 4. Nc3 {[%emt 0:00:09]} a6 {[%emt 0:00:08]} 5. Bg5 {[%emt 0:00:06]} Bxf2+ {[%emt 0:00:34]} 6. Kxf2 {[%emt 0:00:36]} Ng4+ {[%emt 0:00:04]} 7. Ke1 {[%emt 0:00:02]} Qxg5 {[%emt 0:00:04]} 8. Nf3 {[%emt 0:00:08]} Qe3 {[%emt 0:00:07]} 9. Qd2 {[%emt 0:00:37]} Qf2+ {[%emt 0:01:13]} 10. Kd1 {[%emt 0:00:02]} Ne3+ {[%emt 0:00:14]} 11. Kc1 {[%emt 0:00:23]} Nxf1 {[%emt 0:00:14]} 12. Qg5 {[%emt 0:01:08]} Qe3+ {[%emt 0:00:14]} 13. Qxe3 {[%emt 0:00:02]} Nxe3 {[%emt 0:00:01]} 14. Nxe5 {[%emt 0:00:13]} d6 {[%emt 0:00:09]} 15. Nd3 {[%emt 0:00:12]} Bf5 {[%emt 0:00:18]} 16. Nf2 {[%emt 0:00:43]} Nd7 {[%emt 0:00:12]} 17. b3 {[%emt 0:00:09]} O-O-O {[%emt 0:00:37]} 18. Kb2 {[%emt 0:00:25]} Rhe8 {[%emt 0:00:08]} 19. Rhg1 {[%emt 0:00:17]} Nc5 {[%emt 0:00:13]} 20. g4 {[%emt 0:00:05]} Bg6 {[%emt 0:00:18]} 21. h4 {[%emt 0:00:06]} h6 {[%emt 0:00:14]} 22. Rac1 {[%emt 0:00:33]} Re5 {[%emt 0:00:11]} 0-1

[Event "15th Golden Prague Rapid Open"]
[Site "Prague"]
[Date "2019.06.30"]
[Round "2.10"]
[White "Burdik, Lubomir"]
[Black "Moravek, Jakub"]
[Result "1-0"]
[ECO "A50"]
[WhiteElo "2132"]
[BlackElo "1709"]
[Annotator "NA"]
[PlyCount "164"]
[EventDate "2019.06.30"]
[EventType "swiss"]
[EventCountry "CZE"]
[SourceTitle "playchess.com"]
[Source "ChessBase"]
[SourceQuality "1"]
[TimeControl "720+3"]

1. c4 {[%emt 0:00:00]} b6 {[%emt 0:00:05]} 2. d4 {[%emt 0:00:06]} Nf6 {[%emt 0:00:17]} 3. Nc3 {[%emt 0:00:08]} Bb7 {[%emt 0:00:11]} 4. d5 {[%emt 0:00:09]} e6 {[%emt 0:00:18]} 5. e4 {[%emt 0:00:03]} exd5 {[%emt 0:00:11]} 6. cxd5 {[%emt 0:00:16]} Bb4 {[%emt 0:00:09]} 7. Bd3 {[%emt 0:00:05]} Bxc3+ {[%emt 0:00:22]} 8. bxc3 {[%emt 0:00:02]} d6 {[%emt 0:00:17]} 9. Ne2 {[%emt 0:01:22]} Nbd7 {[%emt 0:00:10]} 10. O-O {[%emt 0:00:07]} O-O {[%emt 0:00:14]} 11. Ng3 {[%emt 0:00:52]} Nc5 {[%emt 0:00:26]} 12. Bc2 {[%emt 0:00:25]} Re8 {[%emt 0:00:20]} 13. Re1 {[%emt 0:00:15]} Qe7 {[%emt 0:00:50]} 14. c4 {[%emt 0:02:15]} b5 {[%emt 0:01:05]} 15. Bb2 {[%emt 0:00:49]} bxc4 {[%emt 0:00:31]} 16. Nf5 {[%emt 0:00:39]} Qd8 {[%emt 0:00:12]} 17. Qd4 {[%emt 0:00:10]} Nd3 {[%emt 0:00:53]} 18. Bxd3 {[%emt 0:00:08]} cxd3 {[%emt 0:00:06]} 19. Qxd3 {[%emt 0:00:07]} Bc8 {[%emt 0:00:55]} 20. Nd4 {[%emt 0:00:15]} Bd7 {[%emt 0:00:36]} 21. Re3 {[%emt 0:00:14]} Ng4 {[%emt 0:00:25]} 22. Rg3 {[%emt 0:00:15]} Qh4 {[%emt 0:00:32]} 23. Nf3 {[%emt 0:00:15]} Qe7 {[%emt 0:00:31]} 24. Qc3 {[%emt 0:01:44]} Ne5 {[%emt 0:00:55]} 25. Nd4 {[%emt 0:00:03]} f6 {[%emt 0:00:13]} 26. Qxc7 {[%emt 0:00:20]} Rec8 {[%emt 0:00:10]} 27. Qa5 {[%emt 0:00:06]} Nc4 {[%emt 0:00:19]} 28. Qc3 {[%emt 0:00:14]} Nxb2 {[%emt 0:00:07]} 29. Qxb2 {[%emt 0:00:01]} Qxe4 {[%emt 0:00:08]} 30. Ne6 {[%emt 0:01:05]} Bxe6 {[%emt 0:00:16]} 31. Qxf6 {[%emt 0:00:03]} g6 {[%emt 0:00:43]} 32. dxe6 {[%emt 0:00:12]} Rf8 {[%emt 0:00:08]} 33. Qe7 {[%emt 0:00:14]} Rae8 {[%emt 0:00:21]} 34. Qxa7 {[%emt 0:00:04]} Rxe6 {[%emt 0:00:08]} 35. Re3 {[%emt 0:00:06]} Qf5 {[%emt 0:00:19]} 36. Rxe6 {[%emt 0:00:05]} Qxe6 {[%emt 0:00:05]} 37. Qd4 {[%emt 0:00:03]} Re8 {[%emt 0:00:08]} 38. h3 {[%emt 0:00:06]} Qe5 {[%emt 0:00:07]} 39. Rd1 {[%emt 0:00:18]} Qxd4 {[%emt 0:00:03]} 40. Rxd4 {[%emt 0:00:01]} Re2 {[%emt 0:00:02]} 41. a4 {[%emt 0:00:01]} Ra2 {[%emt 0:00:02]} 42. f3 {[%emt 0:00:02]} Kf7 {[%emt 0:00:02]} 43. Kh2 {[%emt 0:00:01]} Ke6 {[%emt 0:00:01]} 44. Kg3 {[%emt 0:00:01]} Ke5 {[%emt 0:00:04]} 45. Re4+ {[%emt 0:00:02]} Kf5 {[%emt 0:00:03]} 46. Rb4 {[%emt 0:00:07]} h5 {[%emt 0:00:06]} 47. Rb5+ {[%emt 0:00:01]} Ke6 {[%emt 0:00:06]} 48. a5 {[%emt 0:00:01]} Ra4 {[%emt 0:00:02]} 49. Rg5 {[%emt 0:00:10]} Kf6 {[%emt 0:00:03]} 50. h4 {[%emt 0:00:01]} Ra3 {[%emt 0:00:07]} 51. Rb5 {[%emt 0:00:02]} Ra4 {[%emt 0:00:03]} 52. Kh3 {[%emt 0:00:04]} Ra3 {[%emt 0:00:01]} 53. Kh2 {[%emt 0:00:11]} Ra4 {[%emt 0:00:02]} 54. Kg3 {[%emt 0:00:07]} Ra3 {[%emt 0:00:01]} 55. Kf4 {[%emt 0:00:03]} Ra4+ {[%emt 0:00:01]} 56. Ke3 {[%emt 0:00:01]} Ra2 {[%emt 0:00:02]} 57. g3 {[%emt 0:00:02]} Ra3+ {[%emt 0:00:01]} 58. Ke4 {[%emt 0:00:02]} Ra4+ {[%emt 0:00:02]} 59. Kd5 {[%emt 0:00:01]} Ra3 {[%emt 0:00:02]} 60. Kxd6 {[%emt 0:00:02]} Rxf3 {[%emt 0:00:01]} 61. Rg5 {[%emt 0:00:02]} Ra3 {[%emt 0:00:02]} 62. Kc6 {[%emt 0:00:01]} Ra1 {[%emt 0:00:03]} 63. Kb6 {[%emt 0:00:02]} Rb1+ {[%emt 0:00:01]} 64. Ka7 {[%emt 0:00:03]} Rb2 {[%emt 0:00:05]} 65. a6 {[%emt 0:00:01]} Rb1 {[%emt 0:00:02]} 66. Ka8 {[%emt 0:00:01]} Ke6 {[%emt 0:00:04]} 67. a7 {[%emt 0:00:01]} Kd7 {[%emt 0:00:01]} 68. Rxg6 {[%emt 0:00:03]} Kc7 {[%emt 0:00:03]} 69. Rg7+ {[%emt 0:00:04]} Kc8 {[%emt 0:00:04]} 70. Rg8+ {[%emt 0:00:02]} Kc7 {[%emt 0:00:01]} 71. Rh8 {[%emt 0:00:01]} Rb5 {[%emt 0:00:02]} 72. Rh7+ {[%emt 0:00:04]} Kc8 {[%emt 0:00:03]} 73. Rg7 {[%emt 0:00:02]} Rb4 {[%emt 0:00:02]} 74. Rg5 {[%emt 0:00:02]} Rb3 {[%emt 0:00:02]} 75. Rc5+ {[%emt 0:00:01]} Kd7 {[%emt 0:00:01]} 76. Rxh5 {[%emt 0:00:02]} Rxg3 {[%emt 0:00:02]} 77. Rh7+ {[%emt 0:00:01]} Kc8 {[%emt 0:00:02]} 78. Rh8+ {[%emt 0:00:12]} Kc7 {[%emt 0:00:01]} 79. h5 {[%emt 0:00:02]} Rh3 {[%emt 0:00:04]} 80. h6 {[%emt 0:00:04]} Rh1 {[%emt 0:00:01]} 81. h7 {[%emt 0:00:01]} Rh2 {[%emt 0:00:01]} 82. Rb8 {[%emt 0:00:01]} Kc6 {[%emt 0:00:06]} 1-0

[Event "15th Golden Prague Rapid Open"]
[Site "Prague"]
[Date "2019.06.30"]
[Round "3.1"]
[White "Jirovsky, Pavel"]
[Black "Groh, Jiri"]
[Result "1-0"]
[ECO "D34"]
[WhiteElo "2322"]
[BlackElo "2001"]
[Annotator "ChessBase"]
[PlyCount "45"]
[EventDate "2019.06.30"]
[EventType "swiss"]
[EventCountry "CZE"]
[SourceTitle "playchess.com"]
[Source "ChessBase"]
[SourceQuality "1"]
[TimeControl "720+3"]

1. d4 {[%emt 0:00:01]} d5 {[%emt 0:00:00]} 2. Nf3 {[%emt 0:00:04]} Nf6 {[%emt 0:00:00]} 3. c4 {[%emt 0:00:01]} e6 {[%emt 0:00:00]} 4. g3 {[%emt 0:00:03]} Be7 {[%emt 0:00:02]} 5. Bg2 {[%emt 0:00:01]} O-O {[%emt 0:00:01]} 6. O-O {[%emt 0:00:02]} c5 {[%emt 0:00:06]} 7. cxd5 {[%emt 0:00:07]} exd5 {[%emt 0:00:02]} 8. Nc3 {[%emt 0:00:01]} Nc6 {[%emt 0:00:09]} 9. Bg5 {[%emt 0:00:05]} cxd4 {[%emt 0:00:19]} 10. Nxd4 {[%emt 0:00:02]} Qa5 {[%emt 0:01:02]} 11. Nb3 {[%emt 0:00:57]} Qb4 {[%emt 0:00:37]} 12. Bxf6 {[%emt 0:00:05]} Bxf6 {[%emt 0:00:10]} 13. Nxd5 {[%emt 0:00:02]} Qd6 {[%emt 0:00:05]} 14. Nxf6+ {[%emt 0:00:16]} Qxf6 {[%emt 0:00:01]} 15. Qd2 {[%emt 0:00:02]} Rd8 {[%emt 0:00:17]} 16. Qc3 {[%emt 0:00:02]} Qxc3 {[%emt 0:00:07]} 17. bxc3 {[%emt 0:00:01]} a5 {[%emt 0:00:33]} 18. e3 {[%emt 0:00:07]} a4 {[%emt 0:00:03]} 19. Nd4 {[%emt 0:00:02]} Ne5 {[%emt 0:00:05]} 20. Rfb1 {[%emt 0:00:20]} Ra7 {[%emt 0:00:07]} 21. Rb4 {[%emt 0:00:50]} Kf8 {[%emt 0:00:57]} 22. Rab1 {[%emt 0:00:05]} Nc6 {[%emt 0:01:09]} 23. Bxc6 {[%emt 0:00:08]} 1-0

[Event "15th Golden Prague Rapid Open"]
[Site "Prague"]
[Date "2019.06.30"]
[Round "3.2"]
[White "Rehak, Martin"]
[Black "Kiss, Pal"]
[Result "1/2-1/2"]
[ECO "B40"]
[WhiteElo "2071"]
[BlackElo "2278"]
[Annotator "ChessBase"]
[PlyCount "27"]
[EventDate "2019.06.30"]
[EventType "swiss"]
[EventCountry "CZE"]
[SourceTitle "playchess.com"]
[Source "ChessBase"]
[SourceQuality "1"]
[TimeControl "720+3"]

1. e4 {[%emt 0:00:00]} c5 {[%emt 0:00:00]} 2. b3 {[%emt 0:00:00]} Nc6 {[%emt 0:00:01]} 3. Bb2 {[%emt 0:00:01]} e6 {[%emt 0:00:03]} 4. Nf3 {[%emt 0:00:02]} Nf6 {[%emt 0:00:02]} 5. e5 {[%emt 0:00:09]} Nd5 {[%emt 0:00:02]} 6. g3 {[%emt 0:00:01]} Be7 {[%emt 0:00:02]} 7. Bg2 {[%emt 0:00:01]} O-O {[%emt 0:00:02]} 8. O-O {[%emt 0:00:02]} d6 {[%emt 0:00:05]} 9. Qe2 {[%emt 0:00:28]} dxe5 {[%emt 0:00:36]} 10. Nxe5 {[%emt 0:00:02]} Nxe5 {[%emt 0:00:03]} 11. Bxe5 {[%emt 0:00:06]} Bf6 {[%emt 0:00:08]} 12. d3 {[%emt 0:00:36]} Bxe5 {[%emt 0:01:24]} 13. Qxe5 {[%emt 0:00:02]} Qf6 {[%emt 0:00:03]} 14. Qxf6 {[%emt 0:00:14]} 1/2-1/2